[Event "Late-Titled-Tuesday-Blitz-October-03-2023"]
[Site "Chess.com"]
[Date "2023.10.03"]
[Round "8"]
[White "geordie_derraugh"]
[Black "carlospaul1990"]
[Result "0-1"]
[WhiteElo "2483"]
[BlackElo "2358"]
[TimeControl "180+1"]
[EndTime "15:25:55 PDT"]
[Termination "carlospaul1990 won by resignation"]

1. e4 {[%clk 0:02:58.8]} 1... c5 {[%clk 0:02:58.2]} 2. c3 {[%clk 0:02:58.2]}
2... Nf6 {[%clk 0:02:48.6]} 3. e5 {[%clk 0:02:58.2]} 3... Nd5 {[%clk 0:02:46.6]}
4. d4 {[%clk 0:02:58.9]} 4... cxd4 {[%clk 0:02:46.2]} 5. cxd4 {[%clk 0:02:59.8]}
5... d6 {[%clk 0:02:45.8]} 6. Nf3 {[%clk 0:03:00.5]} 6... Nc6 {[%clk 0:02:45.1]}
7. Bc4 {[%clk 0:02:58.7]} 7... Nb6 {[%clk 0:02:44.4]} 8. Bb5 {[%clk 0:02:58.9]}
8... dxe5 {[%clk 0:02:43.4]} 9. Nxe5 {[%clk 0:02:56.8]} 9... Bd7 {[%clk
0:02:39]} 10. Nxd7 {[%clk 0:02:56.9]} 10... Qxd7 {[%clk 0:02:38.7]} 11. Be3
{[%clk 0:02:51.6]} 11... a6 {[%clk 0:02:29.7]} 12. Bxc6 {[%clk 0:02:12.9]} 12...
Qxc6 {[%clk 0:02:26.5]} 13. O-O {[%clk 0:02:11.5]} 13... e6 {[%clk 0:02:26.7]}
14. Nc3 {[%clk 0:02:10.1]} 14... Be7 {[%clk 0:02:27.2]} 15. Rc1 {[%clk
0:02:09.3]} 15... O-O {[%clk 0:02:24.4]} 16. Qe2 {[%clk 0:01:58.9]} 16... Rac8
{[%clk 0:02:20.2]} 17. Rfd1 {[%clk 0:01:54.5]} 17... Nd5 {[%clk 0:01:22.4]} 18.
Qd3 {[%clk 0:01:35.4]} 18... Qc4 {[%clk 0:01:14.5]} 19. Qe4 {[%clk 0:01:30.6]}
19... Nxc3 {[%clk 0:01:03.5]} 20. bxc3 {[%clk 0:01:27.1]} 20... b5 {[%clk
0:00:55.3]} 21. Qb7 {[%clk 0:01:21.3]} 21... Ba3 {[%clk 0:00:50]} 22. Rc2 {[%clk
0:01:21.8]} 22... Qc6 {[%clk 0:00:47.9]} 23. Qxc6 {[%clk 0:01:18.6]} 23... Rxc6
{[%clk 0:00:47.8]} 24. Bc1 {[%clk 0:01:17.8]} 24... Bxc1 {[%clk 0:00:45.8]} 25.
Rdxc1 {[%clk 0:01:17.5]} 25... Rfc8 {[%clk 0:00:46.3]} 26. Kf1 {[%clk
0:01:17.7]} 26... Rc4 {[%clk 0:00:44.9]} 27. Ke2 {[%clk 0:01:16.9]} 27... Kf8
{[%clk 0:00:41.5]} 28. Kd3 {[%clk 0:01:16.6]} 28... Ke7 {[%clk 0:00:41.1]} 29.
Rb1 {[%clk 0:01:05]} 29... Kd6 {[%clk 0:00:39.6]} 30. f4 {[%clk 0:00:54.1]}
30... Kd5 {[%clk 0:00:36.8]} 31. g3 {[%clk 0:00:53.6]} 31... f6 {[%clk
0:00:26.2]} 32. a3 {[%clk 0:00:37.5]} 32... e5 {[%clk 0:00:24]} 33. fxe5 {[%clk
0:00:37.2]} 33... fxe5 {[%clk 0:00:24]} 34. dxe5 {[%clk 0:00:36.6]} 34... Kxe5
{[%clk 0:00:22.9]} 35. Re1+ {[%clk 0:00:36.2]} 35... Kd5 {[%clk 0:00:20.3]} 36.
Rf1 {[%clk 0:00:36.1]} 36... g6 {[%clk 0:00:19.9]} 37. Rf7 {[%clk 0:00:36.2]}
37... R8c7 {[%clk 0:00:19.9]} 38. Rxc7 {[%clk 0:00:30.1]} 38... Rxc7 {[%clk
0:00:19.9]} 39. Rf2 {[%clk 0:00:30.8]} 39... Re7 {[%clk 0:00:18.8]} 40. Rf6
{[%clk 0:00:29.4]} 40... Rd7 {[%clk 0:00:19]} 41. Rxa6 {[%clk 0:00:28.5]} 41...
Kc5+ {[%clk 0:00:19.5]} 42. Kc2 {[%clk 0:00:28.5]} 42... Rf7 {[%clk 0:00:19.1]}
43. Kb3 {[%clk 0:00:24.3]} 43... Rf2 {[%clk 0:00:17.8]} 44. h4 {[%clk
0:00:24.9]} 44... Rf3 {[%clk 0:00:17.8]} 45. Ra7 {[%clk 0:00:24]} 45... h5
{[%clk 0:00:17.6]} 46. Rc7+ {[%clk 0:00:24.3]} 46... Kb6 {[%clk 0:00:17.8]} 47.
Re7 {[%clk 0:00:23.5]} 47... Rxg3 {[%clk 0:00:18.2]} 48. Re6+ {[%clk 0:00:24]}
48... Kc5 {[%clk 0:00:18.6]} 49. Re5+ {[%clk 0:00:24.5]} 49... Kc6 {[%clk
0:00:18.9]} 50. Re6+ {[%clk 0:00:19.9]} 50... Kd5 {[%clk 0:00:17.5]} 51. Rf6
{[%clk 0:00:18.2]} 51... Rg4 {[%clk 0:00:16.1]} 52. Rb6 {[%clk 0:00:17]} 52...
Kc5 {[%clk 0:00:15.1]} 53. Rf6 {[%clk 0:00:17.6]} 53... Kd5 {[%clk 0:00:13.3]}
54. Kc2 {[%clk 0:00:16.9]} 54... Kc5 {[%clk 0:00:12.6]} 55. Kd2 {[%clk
0:00:15.4]} 55... Kc4 {[%clk 0:00:12.3]} 56. Rc6+ {[%clk 0:00:15]} 56... Kb3
{[%clk 0:00:11.3]} 57. Rc5 {[%clk 0:00:15.4]} 57... Ka4 {[%clk 0:00:11.3]} 58.
Rc6 {[%clk 0:00:14.7]} 58... Kxa3 {[%clk 0:00:07.3]} 59. Kc2 {[%clk 0:00:13.2]}
59... Rg2+ {[%clk 0:00:07.5]} 60. Kd3 {[%clk 0:00:13.7]} 60... Ka4 {[%clk
0:00:06.9]} 61. Kd4 {[%clk 0:00:12.8]} 61... Rg4+ {[%clk 0:00:06.5]} 62. Kd5
{[%clk 0:00:09.8]} 62... Kb3 {[%clk 0:00:06]} 63. Ke5 {[%clk 0:00:08.8]} 63...
Rc4 {[%clk 0:00:05.1]} 64. Rxg6 {[%clk 0:00:08.6]} 64... Kxc3 {[%clk 0:00:03.9]}
65. Kd5 {[%clk 0:00:05.8]} 65... Rxh4 {[%clk 0:00:03.5]} 66. Rg3+ {[%clk
0:00:04]} 66... Kb2 {[%clk 0:00:03.9]} 67. Kc5 {[%clk 0:00:04.4]} 67... b4
{[%clk 0:00:03.1]} 68. Rg2+ {[%clk 0:00:05]} 68... Ka3 {[%clk 0:00:03.7]} 69.
Rg3+ {[%clk 0:00:02.8]} 69... b3 {[%clk 0:00:04.6]} 70. Rg8 {[%clk 0:00:03.2]}
70... Ka2 {[%clk 0:00:05.3]} 71. Ra8+ {[%clk 0:00:03.1]} 71... Kb1 {[%clk
0:00:05.9]} 72. Rb8 {[%clk 0:00:03]} 72... b2 {[%clk 0:00:06.8]} 73. Kd5 {[%clk
0:00:03]} 73... Rh2 {[%clk 0:00:07.4]} 74. Ke5 {[%clk 0:00:02.8]} 74... Rc2
{[%clk 0:00:07.9]} 75. Kf5 {[%clk 0:00:02.7]} 75... Kc1 {[%clk 0:00:08.5]} 76.
Rxb2 {[%clk 0:00:02.2]} 76... Kxb2 {[%clk 0:00:08.2]} 77. Kg5 {[%clk 0:00:03.1]}
77... Rh2 {[%clk 0:00:08.3]} 0-1

[Event "Late-Titled-Tuesday-Blitz-October-03-2023"]
[Site "Chess.com"]
[Date "2023.10.03"]
[Round "8"]
[White "Fandorine"]
[Black "djano"]
[Result "1-0"]
[WhiteElo "2929"]
[BlackElo "2680"]
[TimeControl "180+1"]
[EndTime "15:25:57 PDT"]
[Termination "Fandorine won by resignation"]

1. a3 {[%clk 0:02:59.4]} 1... e5 {[%clk 0:02:58.7]} 2. c4 {[%clk 0:02:59.1]}
2... Nf6 {[%clk 0:02:54.6]} 3. Nc3 {[%clk 0:02:50.6]} 3... d5 {[%clk 0:02:53.1]}
4. cxd5 {[%clk 0:02:49.7]} 4... Nxd5 {[%clk 0:02:54]} 5. Nf3 {[%clk 0:02:49.5]}
5... Nc6 {[%clk 0:02:52.5]} 6. Qc2 {[%clk 0:02:44.9]} 6... Be7 {[%clk
0:02:44.9]} 7. e3 {[%clk 0:02:42.5]} 7... O-O {[%clk 0:02:44.5]} 8. Bd3 {[%clk
0:02:42.3]} 8... Kh8 {[%clk 0:02:33.7]} 9. Nxd5 {[%clk 0:02:27.7]} 9... Qxd5
{[%clk 0:02:31.7]} 10. Be4 {[%clk 0:02:28.3]} 10... Qe6 {[%clk 0:02:22.8]} 11.
b4 {[%clk 0:02:26.7]} 11... f5 {[%clk 0:02:20.1]} 12. Bxc6 {[%clk 0:02:26.3]}
12... bxc6 {[%clk 0:02:19.3]} 13. Bb2 {[%clk 0:02:26.8]} 13... Bd6 {[%clk
0:02:08.8]} 14. d4 {[%clk 0:02:19.3]} 14... e4 {[%clk 0:01:56.1]} 15. Ne5 {[%clk
0:02:16.6]} 15... Bxe5 {[%clk 0:01:51.8]} 16. dxe5 {[%clk 0:02:17.5]} 16... Ba6
{[%clk 0:01:52.2]} 17. Rc1 {[%clk 0:02:17.8]} 17... Qg6 {[%clk 0:01:41.1]} 18.
f4 {[%clk 0:02:12]} 18... Bd3 {[%clk 0:01:27.8]} 19. Qd2 {[%clk 0:01:51.7]}
19... Rfd8 {[%clk 0:01:26.1]} 20. Bd4 {[%clk 0:01:47.9]} 20... Rd5 {[%clk
0:01:17.7]} 21. Rc5 {[%clk 0:01:24.3]} 21... h5 {[%clk 0:01:04.4]} 22. Kf2
{[%clk 0:01:21.3]} 22... h4 {[%clk 0:01:04.8]} 23. Rhc1 {[%clk 0:01:08.7]} 23...
Rxc5 {[%clk 0:01:04.9]} 24. Rxc5 {[%clk 0:01:08.4]} 24... Re8 {[%clk 0:00:56.6]}
25. Rc1 {[%clk 0:01:03.5]} 25... a6 {[%clk 0:00:52.9]} 26. Rg1 {[%clk
0:00:36.6]} 26... Re6 {[%clk 0:00:51.9]} 27. Qd1 {[%clk 0:00:33.2]} 27... Qh7
{[%clk 0:00:45.1]} 28. g4 {[%clk 0:00:17.5]} 28... hxg3+ {[%clk 0:00:46]} 29.
hxg3 {[%clk 0:00:18]} 29... Rh6 {[%clk 0:00:46.6]} 30. e6 {[%clk 0:00:13.6]}
30... Rh2+ {[%clk 0:00:42.2]} 31. Rg2 {[%clk 0:00:14]} 31... Kg8 {[%clk
0:00:16.2]} 32. Rxh2 {[%clk 0:00:04.6]} 32... Qxh2+ {[%clk 0:00:16.3]} 33. Ke1
{[%clk 0:00:05.5]} 33... Qxg3+ {[%clk 0:00:13.8]} 34. Kd2 {[%clk 0:00:06.1]}
34... Qf2+ {[%clk 0:00:14.1]} 35. Kc3 {[%clk 0:00:06.7]} 35... Qa2 {[%clk
0:00:13.7]} 36. Qb3 {[%clk 0:00:06.8]} 36... Qxb3+ {[%clk 0:00:09.1]} 37. Kxb3
{[%clk 0:00:07]} 37... Kf8 {[%clk 0:00:08.8]} 38. Bc5+ {[%clk 0:00:03.3]} 38...
Ke8 {[%clk 0:00:08.6]} 39. Kc3 {[%clk 0:00:03.6]} 39... Bb1 {[%clk 0:00:07.5]}
40. Kd4 {[%clk 0:00:03.9]} 40... Ba2 {[%clk 0:00:06.8]} 41. Ke5 {[%clk
0:00:04.5]} 41... g6 {[%clk 0:00:05.9]} 42. Kf6 {[%clk 0:00:04.9]} 42... Bd5
{[%clk 0:00:05.1]} 43. Bd4 {[%clk 0:00:05.4]} 43... Bc4 {[%clk 0:00:04.4]} 44.
Be5 {[%clk 0:00:06.1]} 44... Bd5 {[%clk 0:00:03.4]} 45. Bxc7 {[%clk 0:00:06.3]}
45... Bc4 {[%clk 0:00:03.6]} 46. Be5 {[%clk 0:00:06.9]} 46... Bd5 {[%clk
0:00:04]} 47. Bd4 {[%clk 0:00:07.6]} 47... Bc4 {[%clk 0:00:03.6]} 48. Bc5 {[%clk
0:00:08.1]} 48... Bd5 {[%clk 0:00:03.9]} 49. e7 {[%clk 0:00:08.1]} 49... Bf7
{[%clk 0:00:03.4]} 50. Bd6 {[%clk 0:00:08.4]} 50... Bd5 {[%clk 0:00:02.7]} 51.
Kxg6 {[%clk 0:00:08.1]} 51... Be6 {[%clk 0:00:03.3]} 52. Kf6 {[%clk 0:00:08.4]}
52... Bd7 {[%clk 0:00:03.9]} 53. Bc5 {[%clk 0:00:08]} 53... Bc8 {[%clk
0:00:04.3]} 54. a4 {[%clk 0:00:08.2]} 54... Bd7 {[%clk 0:00:04.6]} 55. Ke5
{[%clk 0:00:08.9]} 55... Bc8 {[%clk 0:00:02.9]} 56. Kd6 {[%clk 0:00:09.5]} 56...
Bd7 {[%clk 0:00:03.6]} 57. a5 {[%clk 0:00:07.6]} 57... Bc8 {[%clk 0:00:03.3]}
58. Kc7 {[%clk 0:00:07.7]} 58... Be6 {[%clk 0:00:03.3]} 59. Kxc6 {[%clk
0:00:04.8]} 59... Bc4 {[%clk 0:00:03.6]} 60. Kd6 {[%clk 0:00:05.4]} 60... Bb5
{[%clk 0:00:03.8]} 61. Ke6 {[%clk 0:00:05.2]} 61... Bd7+ {[%clk 0:00:04.4]} 62.
Kf6 {[%clk 0:00:05.8]} 62... Bc8 {[%clk 0:00:04.4]} 63. b5 {[%clk 0:00:05.2]}
63... axb5 {[%clk 0:00:04.3]} 64. Bb4 {[%clk 0:00:05.4]} 64... Bd7 {[%clk
0:00:02.7]} 65. a6 {[%clk 0:00:05.9]} 65... Bc6 {[%clk 0:00:03]} 66. Kxf5 {[%clk
0:00:04.6]} 66... Kf7 {[%clk 0:00:03.4]} 67. Ke5 {[%clk 0:00:05]} 67... Ba8
{[%clk 0:00:03.1]} 68. Kd6 {[%clk 0:00:05.6]} 68... Ke8 {[%clk 0:00:01.3]} 69.
Kc7 {[%clk 0:00:05.4]} 69... Bd5 {[%clk 0:00:02]} 70. a7 {[%clk 0:00:05.7]}
70... Ba8 {[%clk 0:00:01.7]} 71. Kb8 {[%clk 0:00:06.1]} 71... Kd7 {[%clk
0:00:01.4]} 72. Kxa8 {[%clk 0:00:05.6]} 72... Kc7 {[%clk 0:00:02.3]} 1-0

[Event "Late-Titled-Tuesday-Blitz-October-03-2023"]
[Site "Chess.com"]
[Date "2023.10.03"]
[Round "8"]
[White "Qvalda"]
[Black "ritanovikova"]
[Result "1-0"]
[WhiteElo "2377"]
[BlackElo "2176"]
[TimeControl "180+1"]
[EndTime "15:26:02 PDT"]
[Termination "Qvalda won on time"]

1. Nf3 {[%clk 0:03:00.9]} 1... Nf6 {[%clk 0:02:59.9]} 2. g3 {[%clk 0:02:57.9]}
2... g6 {[%clk 0:02:59.4]} 3. Bg2 {[%clk 0:02:58.8]} 3... Bg7 {[%clk 0:02:59.6]}
4. O-O {[%clk 0:02:59.7]} 4... O-O {[%clk 0:02:58.9]} 5. d4 {[%clk 0:03:00.2]}
5... d6 {[%clk 0:02:59]} 6. c4 {[%clk 0:03:00.7]} 6... c6 {[%clk 0:02:57.1]} 7.
Nc3 {[%clk 0:02:59.4]} 7... Qc7 {[%clk 0:02:55.8]} 8. e4 {[%clk 0:02:57.3]} 8...
Bg4 {[%clk 0:01:59.4]} 9. h3 {[%clk 0:02:53.6]} 9... Bxf3 {[%clk 0:01:51.2]} 10.
Qxf3 {[%clk 0:02:54.5]} 10... Nbd7 {[%clk 0:01:50.8]} 11. Rd1 {[%clk 0:02:44.5]}
11... e5 {[%clk 0:01:48.1]} 12. d5 {[%clk 0:02:38.2]} 12... a5 {[%clk
0:01:46.9]} 13. b3 {[%clk 0:02:36.9]} 13... Nc5 {[%clk 0:01:47.2]} 14. Rb1
{[%clk 0:02:33.8]} 14... Nh5 {[%clk 0:01:45.9]} 15. Qe2 {[%clk 0:02:28.9]} 15...
f5 {[%clk 0:01:44]} 16. exf5 {[%clk 0:02:28.6]} 16... Rxf5 {[%clk 0:01:41.4]}
17. dxc6 {[%clk 0:02:26.8]} 17... bxc6 {[%clk 0:01:39.9]} 18. Ne4 {[%clk
0:02:26]} 18... Nxe4 {[%clk 0:01:33.3]} 19. Bxe4 {[%clk 0:02:23.7]} 19... Rf7
{[%clk 0:01:33.3]} 20. Ba3 {[%clk 0:02:16.9]} 20... Rd8 {[%clk 0:01:15]} 21. Rd3
{[%clk 0:02:16]} 21... Rfd7 {[%clk 0:01:13]} 22. Rbd1 {[%clk 0:02:12.7]} 22...
Nf6 {[%clk 0:01:11.4]} 23. Bg2 {[%clk 0:02:12.3]} 23... Kh8 {[%clk 0:01:10.7]}
24. g4 {[%clk 0:01:44.9]} 24... d5 {[%clk 0:01:07.2]} 25. g5 {[%clk 0:01:40.5]}
25... e4 {[%clk 0:01:06.7]} 26. gxf6 {[%clk 0:01:38.4]} 26... exd3 {[%clk
0:01:06.8]} 27. fxg7+ {[%clk 0:01:38.6]} 27... Kxg7 {[%clk 0:01:07.2]} 28. Qxd3
{[%clk 0:01:28.7]} 28... dxc4 {[%clk 0:00:48.6]} 29. Bb2+ {[%clk 0:01:27.6]}
29... Kf8 {[%clk 0:00:38.4]} 30. Qf3+ {[%clk 0:01:24.1]} 30... Rf7 {[%clk
0:00:36.8]} 31. Rxd8+ {[%clk 0:00:47.3]} 31... Qxd8 {[%clk 0:00:37.7]} 32. Qxc6
{[%clk 0:00:47.1]} 32... cxb3 {[%clk 0:00:36]} 33. axb3 {[%clk 0:00:42.6]} 33...
Qd1+ {[%clk 0:00:34]} 34. Kh2 {[%clk 0:00:42.1]} 34... Qd8 {[%clk 0:00:28.6]}
35. Ba3+ {[%clk 0:00:31.2]} 35... Kg7 {[%clk 0:00:28.2]} 36. Qc3+ {[%clk
0:00:30.7]} 36... Kh6 {[%clk 0:00:26.7]} 37. Bc1+ {[%clk 0:00:29.2]} 37... g5
{[%clk 0:00:26.1]} 38. h4 {[%clk 0:00:20.8]} 38... Qd6+ {[%clk 0:00:21.5]} 39.
Qg3 {[%clk 0:00:19.9]} 39... Qxg3+ {[%clk 0:00:16.4]} 40. Kxg3 {[%clk
0:00:20.8]} 40... Rc7 {[%clk 0:00:13.1]} 41. hxg5+ {[%clk 0:00:20]} 41... Kg7
{[%clk 0:00:14]} 42. Bb2+ {[%clk 0:00:18.8]} 42... Kf8 {[%clk 0:00:13.2]} 43.
Be4 {[%clk 0:00:15.7]} 43... Kg8 {[%clk 0:00:11.8]} 44. f3 {[%clk 0:00:15.6]}
44... Rd7 {[%clk 0:00:10.4]} 45. Bc3 {[%clk 0:00:13]} 45... Ra7 {[%clk
0:00:09.2]} 46. Kf4 {[%clk 0:00:12.7]} 46... a4 {[%clk 0:00:09.6]} 47. bxa4
{[%clk 0:00:13]} 47... Rxa4 {[%clk 0:00:09.6]} 48. Be5 {[%clk 0:00:13.8]} 48...
Ra7 {[%clk 0:00:08.4]} 49. Kf5 {[%clk 0:00:13.9]} 49... Rf7+ {[%clk 0:00:08.2]}
50. Bf6 {[%clk 0:00:14.3]} 50... Kf8 {[%clk 0:00:06.7]} 51. Bd5 {[%clk
0:00:13.8]} 51... Ra7 {[%clk 0:00:06.4]} 52. f4 {[%clk 0:00:13]} 52... Rd7
{[%clk 0:00:05.7]} 53. Ke5 {[%clk 0:00:12.7]} 53... Ra7 {[%clk 0:00:05.7]} 54.
Be6 {[%clk 0:00:12.7]} 54... Ra5+ {[%clk 0:00:06.2]} 55. Ke4 {[%clk 0:00:13]}
55... Ra6 {[%clk 0:00:06]} 56. Bd5 {[%clk 0:00:13.1]} 56... h6 {[%clk 0:00:06]}
57. Bc4 {[%clk 0:00:10.6]} 57... Rc6 {[%clk 0:00:05]} 58. Bd5 {[%clk 0:00:09.8]}
58... Ra6 {[%clk 0:00:05.6]} 59. Ke5 {[%clk 0:00:09.3]} 59... hxg5 {[%clk
0:00:05.8]} 60. fxg5 {[%clk 0:00:09.5]} 60... Ra5 {[%clk 0:00:06]} 61. g6 {[%clk
0:00:08.3]} 61... Ra7 {[%clk 0:00:04.5]} 62. Be6 {[%clk 0:00:07.7]} 62... Ke8
{[%clk 0:00:02.3]} 63. g7 {[%clk 0:00:07.4]} 63... Rxg7 {[%clk 0:00:02.1]} 64.
Bxg7 {[%clk 0:00:07.4]} 1-0

[Event "Late-Titled-Tuesday-Blitz-October-03-2023"]
[Site "Chess.com"]
[Date "2023.10.03"]
[Round "8"]
[White "Hrant_ChessMood"]
[Black "BardArtem"]
[Result "0-1"]
[WhiteElo "2967"]
[BlackElo "2807"]
[TimeControl "180+1"]
[EndTime "15:26:14 PDT"]
[Termination "BardArtem won by checkmate"]

1. c4 {[%clk 0:03:00.9]} 1... c6 {[%clk 0:02:58.2]} 2. Nf3 {[%clk 0:02:59.9]}
2... d5 {[%clk 0:02:58.2]} 3. g3 {[%clk 0:03:00.6]} 3... Nf6 {[%clk 0:02:58.4]}
4. Bg2 {[%clk 0:03:00.5]} 4... Bf5 {[%clk 0:02:58.6]} 5. Qb3 {[%clk 0:02:59.8]}
5... Qb6 {[%clk 0:02:58]} 6. d3 {[%clk 0:02:59.7]} 6... e6 {[%clk 0:02:56.5]} 7.
Be3 {[%clk 0:02:58.4]} 7... Qxb3 {[%clk 0:02:56.3]} 8. axb3 {[%clk 0:02:58.7]}
8... a6 {[%clk 0:02:56.9]} 9. Bd4 {[%clk 0:02:57.9]} 9... Nbd7 {[%clk
0:02:54.2]} 10. Bc3 {[%clk 0:02:57.7]} 10... h6 {[%clk 0:02:42.9]} 11. b4 {[%clk
0:02:57.8]} 11... Rc8 {[%clk 0:02:37.5]} 12. Nbd2 {[%clk 0:02:55.6]} 12... Be7
{[%clk 0:02:31.6]} 13. Nb3 {[%clk 0:02:55.6]} 13... Bd8 {[%clk 0:02:29.9]} 14.
O-O {[%clk 0:02:46.8]} 14... O-O {[%clk 0:02:28.6]} 15. Nfd4 {[%clk 0:02:43.1]}
15... Bh7 {[%clk 0:02:26.2]} 16. Na5 {[%clk 0:02:43.3]} 16... Bxa5 {[%clk
0:02:25.7]} 17. Rxa5 {[%clk 0:02:31.5]} 17... dxc4 {[%clk 0:02:20.4]} 18. dxc4
{[%clk 0:02:30.9]} 18... Be4 {[%clk 0:02:21.1]} 19. f3 {[%clk 0:02:23.7]} 19...
Bg6 {[%clk 0:02:08.2]} 20. e4 {[%clk 0:02:23.8]} 20... c5 {[%clk 0:01:57.3]} 21.
bxc5 {[%clk 0:02:19.8]} 21... Rxc5 {[%clk 0:01:57.6]} 22. b3 {[%clk 0:02:14.1]}
22... Rxa5 {[%clk 0:01:53.1]} 23. Bxa5 {[%clk 0:02:15]} 23... e5 {[%clk
0:01:46.6]} 24. Nc2 {[%clk 0:02:08.5]} 24... Nc5 {[%clk 0:01:38.2]} 25. Rb1
{[%clk 0:02:08.2]} 25... b5 {[%clk 0:01:22.1]} 26. cxb5 {[%clk 0:02:03.5]} 26...
axb5 {[%clk 0:01:23]} 27. Bf1 {[%clk 0:02:02.4]} 27... Rc8 {[%clk 0:00:59.5]}
28. Ne3 {[%clk 0:01:58.3]} 28... Ne6 {[%clk 0:00:56.7]} 29. Kf2 {[%clk
0:01:42.6]} 29... Nd4 {[%clk 0:00:53.7]} 30. Bd3 {[%clk 0:01:24.4]} 30... Nd7
{[%clk 0:00:41.5]} 31. Be1 {[%clk 0:01:14.2]} 31... Nc5 {[%clk 0:00:39.7]} 32.
Bf1 {[%clk 0:01:02.9]} 32... Nxf3 {[%clk 0:00:37.2]} 33. Rd1 {[%clk 0:00:23.7]}
33... Nxe1 {[%clk 0:00:33.8]} 34. Kxe1 {[%clk 0:00:24.6]} 34... Nxb3 {[%clk
0:00:30.6]} 35. Bxb5 {[%clk 0:00:24.9]} 35... Bxe4 {[%clk 0:00:25.4]} 36. Rd7
{[%clk 0:00:24.9]} 36... Bc6 {[%clk 0:00:18.4]} 37. Bxc6 {[%clk 0:00:21.7]}
37... Rxc6 {[%clk 0:00:19.3]} 38. Nf5 {[%clk 0:00:22.1]} 38... Rf6 {[%clk
0:00:17.6]} 39. Ne7+ {[%clk 0:00:19.9]} 39... Kh7 {[%clk 0:00:16.7]} 40. Nd5
{[%clk 0:00:20.8]} 40... Rf3 {[%clk 0:00:12.4]} 41. Nb6 {[%clk 0:00:19.3]} 41...
Nd4 {[%clk 0:00:11.7]} 42. Nc4 {[%clk 0:00:19.5]} 42... f6 {[%clk 0:00:12.2]}
43. Nd6 {[%clk 0:00:19]} 43... Nf5 {[%clk 0:00:10.4]} 44. Ne8 {[%clk 0:00:18.6]}
44... Kg8 {[%clk 0:00:10.3]} 45. g4 {[%clk 0:00:17.4]} 45... Kf8 {[%clk
0:00:09.5]} 46. Nc7 {[%clk 0:00:12.9]} 46... Nd4 {[%clk 0:00:09.9]} 47. Nd5
{[%clk 0:00:08.8]} 47... Rh3 {[%clk 0:00:10.2]} 48. Ra7 {[%clk 0:00:02.3]} 48...
Rxh2 {[%clk 0:00:10.1]} 49. Ne7 {[%clk 0:00:02.9]} 49... Rg2 {[%clk 0:00:07]}
50. Ng6+ {[%clk 0:00:03.2]} 50... Kg8 {[%clk 0:00:07.2]} 51. Ne7+ {[%clk
0:00:03.8]} 51... Kh7 {[%clk 0:00:07.6]} 52. Nd5 {[%clk 0:00:04.3]} 52... Kg6
{[%clk 0:00:05]} 53. Ne7+ {[%clk 0:00:04.6]} 53... Kg5 {[%clk 0:00:05.7]} 54.
Nd5 {[%clk 0:00:05]} 54... g6 {[%clk 0:00:05.1]} 55. Ra6 {[%clk 0:00:03.6]}
55... Rxg4 {[%clk 0:00:03.3]} 56. Nxf6 {[%clk 0:00:03.9]} 56... Rf4 {[%clk
0:00:03.1]} 57. Nd5 {[%clk 0:00:03.4]} 57... Re4+ {[%clk 0:00:03.4]} 58. Kf1
{[%clk 0:00:03.5]} 58... h5 {[%clk 0:00:03.4]} 59. Ne7 {[%clk 0:00:04.1]} 59...
Rf4+ {[%clk 0:00:02.4]} 60. Ke1 {[%clk 0:00:03.8]} 60... Rf6 {[%clk 0:00:03.3]}
61. Ra5 {[%clk 0:00:03.7]} 61... Re6 {[%clk 0:00:03.9]} 62. Nd5 {[%clk
0:00:03.9]} 62... Nf5 {[%clk 0:00:03.7]} 63. Nc3 {[%clk 0:00:03.9]} 63... h4
{[%clk 0:00:03.7]} 64. Ne4+ {[%clk 0:00:04.3]} 64... Kf4 {[%clk 0:00:04.4]} 65.
Ra4 {[%clk 0:00:04.8]} 65... Nd4 {[%clk 0:00:05.1]} 66. Nf2 {[%clk 0:00:04.5]}
66... g5 {[%clk 0:00:04.9]} 67. Ra8 {[%clk 0:00:04.4]} 67... e4 {[%clk
0:00:04.2]} 68. Rf8+ {[%clk 0:00:04.9]} 68... Kg3 {[%clk 0:00:04.6]} 69. Rg8
{[%clk 0:00:04.1]} 69... Nf3+ {[%clk 0:00:04]} 70. Ke2 {[%clk 0:00:04.7]} 70...
h3 {[%clk 0:00:03.2]} 71. Rh8 {[%clk 0:00:04.5]} 71... h2 {[%clk 0:00:03.7]} 72.
Ke3 {[%clk 0:00:03.7]} 72... Kg2 {[%clk 0:00:03.5]} 73. Rh5 {[%clk 0:00:03.4]}
73... g4 {[%clk 0:00:03]} 74. Rh8 {[%clk 0:00:01.9]} 74... g3 {[%clk 0:00:03.3]}
75. Nxe4 {[%clk 0:00:02.6]} 75... Rxe4+ {[%clk 0:00:02.9]} 76. Kxe4 {[%clk
0:00:03.4]} 76... h1=Q {[%clk 0:00:03.5]} 77. Rg8 {[%clk 0:00:02.3]} 77... Qe1+
{[%clk 0:00:03.3]} 78. Kf4 {[%clk 0:00:03.2]} 78... Qd2+ {[%clk 0:00:03.3]} 79.
Kg4 {[%clk 0:00:03.5]} 79... Qd4+ {[%clk 0:00:03.6]} 80. Kh5 {[%clk 0:00:04.1]}
80... Qd5+ {[%clk 0:00:04.2]} 81. Kg4 {[%clk 0:00:04.3]} 81... Qxg8+ {[%clk
0:00:04.6]} 82. Kh5 {[%clk 0:00:04.2]} 82... Qg5# {[%clk 0:00:04.8]} 0-1